[Event "Gaprindashvili Cup Open II Stage 2020"]
[Site "Online"]
[Date "2020.11.08"]
[Round "8.11"]
[White "kiladze, Luka"]
[Black "Safarov, Deniel"]
[Result "0-1"]
[ECO "E62"]
[WhiteElo "1786"]
[BlackElo "1720"]
[Annotator "NA RC"]
[PlyCount "72"]
[EventDate "2020.11.04"]
[EventType "swiss"]
[SourceTitle "playchess.com"]
[Source "ChessBase"]
[SourceQuality "1"]
[TimeControl "1500+5"]

1. d4 {[%emt 0:00:04]} Nf6 {[%emt 0:00:03]} 2. Nf3 {[%emt 0:00:09]} g6 {[%emt 0:00:02]} 3. c4 {[%emt 0:00:02]} Bg7 {[%emt 0:00:01]} 4. g3 {[%emt 0:00:01]} O-O {[%emt 0:00:02]} 5. Bg2 {[%emt 0:00:01]} d6 {[%emt 0:00:01]} 6. O-O {[%emt 0:00:01]} Nc6 {[%emt 0:00:01]} 7. Nc3 {[%emt 0:00:06]} e5 {[%emt 0:00:02]} 8. d5 {[%emt 0:00:02]} Nb8 {[%emt 0:00:02]} 9. e4 {[%emt 0:00:01]} a5 {[%emt 0:00:01]} 10. Ne1 {[%emt 0:00:08]} Na6 {[%emt 0:00:02]} 11. Nd3 {[%emt 0:00:02]} Nd7 {[%emt 0:00:01]} 12. Be3 {[%emt 0:00:07]} Nac5 {[%emt 0:00:12]} 13. Nxc5 {[%emt 0:00:12]} Nxc5 {[%emt 0:00:02]} 14. b3 {[%emt 0:00:01]} f5 {[%emt 0:00:31]} 15. f3 {[%emt 0:00:09]} h5 {[%emt 0:01:19]} 16. Rc1 {[%emt 0:01:18]} h4 {[%emt 0:00:57]} 17. exf5 {[%emt 0:01:17]} gxf5 {[%emt 0:00:53]} 18. Qd2 {[%emt 0:01:10]} hxg3 {[%emt 0:00:55]} 19. hxg3 {[%emt 0:00:04]} Qe8 {[%emt 0:00:08]} 20. Nb5 {[%emt 0:01:14]} Qg6 {[%emt 0:01:55]} 21. Nxc7 {[%emt 0:00:53]} f4 {[%emt 0:01:08]} 22. Bxc5 {[%emt 0:01:54]} dxc5 {[%emt 0:00:04]} 23. Rce1 {[%emt 0:00:56]} fxg3 {[%emt 0:01:50]} 24. Nxa8 {[%emt 0:02:28]} Bh6 {[%emt 0:00:04]} 25. Qb2 {[%emt 0:00:43]} Bf4 {[%emt 0:03:08]} 26. Nc7 {[%emt 0:03:39]} Qh6 {[%emt 0:00:43]} 27. Bh1 {[%emt 0:00:06]} Be3+ {[%emt 0:00:47]} 28. Rxe3 {[%emt 0:00:07]} Qxe3+ {[%emt 0:00:02]} 29. Kg2 {[%emt 0:00:03]} Rf6 {[%emt 0:01:23]} 30. Qc2 {[%emt 0:02:13]} Bh3+ {[%emt 0:01:06]} 31. Kxh3 {[%emt 0:00:13]} Rh6+ {[%emt 0:00:03]} 32. Kxg3 {[%emt 0:00:01]} Qf4+ {[%emt 0:00:04]} 33. Kf2 {[%emt 0:00:04]} Rh2+ {[%emt 0:00:07]} 34. Bg2 {[%emt 0:00:01]} Qh4+ {[%emt 0:00:20]} 35. Ke3 {[%emt 0:00:09]} Qd4+ {[%emt 0:00:02]} 36. Ke2 {[%emt 0:00:35]} Rxg2+ {[%emt 0:00:02]} 0-1

[Event "Gaprindashvili Cup Open II Stage 2020"]
[Site "Online"]
[Date "2020.11.08"]
[Round "8.13"]
[White "Mindiashvili, Tengiz"]
[Black "Elashvili, Giorgi"]
[Result "1/2-1/2"]
[ECO "C12"]
[WhiteElo "1923"]
[BlackElo "1857"]
[Annotator "NA"]
[PlyCount "99"]
[EventDate "2020.11.04"]
[EventType "swiss"]
[SourceTitle "playchess.com"]
[Source "ChessBase"]
[SourceQuality "1"]
[TimeControl "1500+5"]

1. e4 {[%emt 0:00:09]} e6 {[%emt 0:00:08]} 2. d4 {[%emt 0:00:02]} d5 {[%emt 0:00:01]} 3. Nc3 {[%emt 0:00:01]} Nf6 {[%emt 0:00:02]} 4. Bg5 {[%emt 0:00:03]} Bb4 {[%emt 0:00:08]} 5. e5 {[%emt 0:00:05]} h6 {[%emt 0:00:01]} 6. Bd2 {[%emt 0:00:02]} Bxc3 {[%emt 0:00:05]} 7. bxc3 {[%emt 0:00:02]} Ne4 {[%emt 0:00:02]} 8. Qg4 {[%emt 0:00:01]} g6 {[%emt 0:00:10]} 9. Bd3 {[%emt 0:00:04]} Nxd2 {[%emt 0:00:36]} 10. Kxd2 {[%emt 0:00:03]} h5 {[%emt 0:00:02]} 11. Qf4 {[%emt 0:00:16]} c5 {[%emt 0:00:36]} 12. Nf3 {[%emt 0:00:06]} Nc6 {[%emt 0:01:12]} 13. Rab1 {[%emt 0:01:29]} Qe7 {[%emt 0:04:09]} 14. h4 {[%emt 0:00:24]} b6 {[%emt 0:03:14]} 15. Ng5 {[%emt 0:00:25]} cxd4 {[%emt 0:00:53]} 16. cxd4 {[%emt 0:00:08]} Bd7 {[%emt 0:01:53]} 17. c3 {[%emt 0:04:08]} Rc8 {[%emt 0:00:15]} 18. Rh3 {[%emt 0:00:21]} Rc7 {[%emt 0:01:40]} 19. Rf3 {[%emt 0:00:16]} Nd8 {[%emt 0:00:46]} 20. Qf6 {[%emt 0:08:14]} Qxf6 {[%emt 0:00:18]} 21. Rxf6 {[%emt 0:00:02]} Ke7 {[%emt 0:01:56]} 22. f3 {[%emt 0:02:32]} Be8 {[%emt 0:00:10]} 23. Rh1 {[%emt 0:00:50]} b5 {[%emt 0:03:15]} 24. Rb1 {[%emt 0:00:18]} Rb7 {[%emt 0:00:18]} 25. a3 {[%emt 0:00:38]} a6 {[%emt 0:00:16]} 26. Be2 {[%emt 0:02:17]} Kf8 {[%emt 0:01:03]} 27. a4 {[%emt 0:00:35]} Kg7 {[%emt 0:00:09]} 28. axb5 {[%emt 0:00:14]} Bxb5 {[%emt 0:01:00]} 29. Bxb5 {[%emt 0:00:09]} Rxb5 {[%emt 0:00:17]} 30. Rxb5 {[%emt 0:00:17]} axb5 {[%emt 0:00:02]} 31. Kc2 {[%emt 0:00:02]} Re8 {[%emt 0:00:19]} 32. Kb3 {[%emt 0:00:12]} Re7 {[%emt 0:00:01]} 33. g4 {[%emt 0:00:12]} Rb7 {[%emt 0:01:16]} 34. gxh5 {[%emt 0:00:17]} gxh5 {[%emt 0:00:03]} 35. Nh3 {[%emt 0:00:04]} Nc6 {[%emt 0:00:12]} 36. Nf4 {[%emt 0:00:04]} b4 {[%emt 0:00:07]} 37. Nxh5+ {[%emt 0:00:04]} Kg8 {[%emt 0:00:02]} 38. Rf4 {[%emt 0:00:19]} Na5+ {[%emt 0:00:15]} 39. Kc2 {[%emt 0:00:47]} b3+ {[%emt 0:00:09]} 40. Kb1 {[%emt 0:00:05]} Nc4 {[%emt 0:00:24]} 41. Rg4+ {[%emt 0:00:42]} Kh7 {[%emt 0:00:12]} 42. Nf6+ {[%emt 0:00:03]} Kh6 {[%emt 0:00:05]} 43. Ng8+ {[%emt 0:00:47]} Kh7 {[%emt 0:00:04]} 44. Nf6+ {[%emt 0:00:07]} Kh6 {[%emt 0:00:05]} 45. Ng8+ {[%emt 0:00:18]} Kh7 {[%emt 0:00:03]} 46. Nf6+ {[%emt 0:00:02]} Kh6 {[%emt 0:00:01]} 47. Ng8+ {[%emt 0:00:21]} Kh7 {[%emt 0:00:03]} 48. Nf6+ {[%emt 0:00:04]} Kh6 {[%emt 0:00:01]} 49. Ng8+ {[%emt 0:00:10]} Kh7 {[%emt 0:00:02]} 50. Nf6+ {[%emt 0:00:02]} 1/2-1/2

[Event "Gaprindashvili Cup Open II Stage 2020"]
[Site "Online"]
[Date "2020.11.08"]
[Round "8.15"]
[White "Kachkachishvili, Lasha"]
[Black "Tsanatsqenishvili, Giorgi"]
[Result "1-0"]
[ECO "A01"]
[WhiteElo "1681"]
[BlackElo "1631"]
[Annotator "NA"]
[PlyCount "195"]
[EventDate "2020.11.04"]
[EventType "swiss"]
[SourceTitle "playchess.com"]
[Source "ChessBase"]
[SourceQuality "1"]
[TimeControl "1500+5"]

1. b3 {[%emt 0:00:12]} Nf6 {[%emt 0:00:03]} 2. Bb2 {[%emt 0:00:02]} d5 {[%emt 0:00:02]} 3. e3 {[%emt 0:00:01]} a6 {[%emt 0:00:02]} 4. a4 {[%emt 0:00:06]} Bf5 {[%emt 0:00:02]} 5. Nf3 {[%emt 0:00:02]} h6 {[%emt 0:00:03]} 6. Be2 {[%emt 0:00:07]} Nc6 {[%emt 0:00:04]} 7. O-O {[%emt 0:00:02]} e6 {[%emt 0:00:02]} 8. h3 {[%emt 0:00:03]} Bd6 {[%emt 0:00:03]} 9. d4 {[%emt 0:00:07]} O-O {[%emt 0:00:36]} 10. Bd3 {[%emt 0:00:22]} Ne4 {[%emt 0:00:05]} 11. Nbd2 {[%emt 0:00:13]} Qf6 {[%emt 0:00:33]} 12. Rb1 {[%emt 0:02:03]} e5 {[%emt 0:01:07]} 13. Bxe4 {[%emt 0:00:46]} dxe4 {[%emt 0:00:10]} 14. Nxe5 {[%emt 0:00:05]} Nxe5 {[%emt 0:00:01]} 15. dxe5 {[%emt 0:00:01]} Bxe5 {[%emt 0:00:02]} 16. Bxe5 {[%emt 0:00:02]} Qxe5 {[%emt 0:00:02]} 17. Nc4 {[%emt 0:00:03]} Qf6 {[%emt 0:00:17]} 18. Qd5 {[%emt 0:00:48]} c6 {[%emt 0:00:42]} 19. Qe5 {[%emt 0:00:25]} Qxe5 {[%emt 0:02:39]} 20. Nxe5 {[%emt 0:00:04]} Rfd8 {[%emt 0:00:12]} 21. Rfd1 {[%emt 0:00:06]} Be6 {[%emt 0:00:03]} 22. a5 {[%emt 0:01:19]} Kf8 {[%emt 0:00:10]} 23. Kf1 {[%emt 0:00:37]} Ke7 {[%emt 0:00:18]} 24. Ke2 {[%emt 0:00:05]} h5 {[%emt 0:02:36]} 25. Rd4 {[%emt 0:01:50]} Rd5 {[%emt 0:03:07]} 26. Nc4 {[%emt 0:03:07]} Rxd4 {[%emt 0:02:21]} 27. exd4 {[%emt 0:00:05]} g5 {[%emt 0:00:02]} 28. Ke3 {[%emt 0:03:37]} f5 {[%emt 0:00:12]} 29. Ne5 {[%emt 0:00:11]} Kf6 {[%emt 0:00:14]} 30. g4 {[%emt 0:02:48]} c5 {[%emt 0:02:17]} 31. c3 {[%emt 0:02:10]} hxg4 {[%emt 0:01:26]} 32. hxg4 {[%emt 0:00:04]} Rh8 {[%emt 0:00:04]} 33. gxf5 {[%emt 0:01:43]} Rh3+ {[%emt 0:00:35]} 34. Kd2 {[%emt 0:00:16]} Kxf5 {[%emt 0:00:01]} 35. Nc4 {[%emt 0:01:13]} Bxc4 {[%emt 0:00:30]} 36. bxc4 {[%emt 0:00:03]} cxd4 {[%emt 0:00:01]} 37. cxd4 {[%emt 0:00:04]} Rd3+ {[%emt 0:00:03]} 38. Ke2 {[%emt 0:00:08]} Rxd4 {[%emt 0:00:01]} 39. Rxb7 {[%emt 0:00:05]} Rxc4 {[%emt 0:00:02]} 40. Rb6 {[%emt 0:00:07]} Rc2+ {[%emt 0:00:40]} 41. Ke3 {[%emt 0:00:07]} Rc3+ {[%emt 0:00:12]} 42. Ke2 {[%emt 0:00:02]} Ra3 {[%emt 0:00:28]} 43. Rxa6 {[%emt 0:00:04]} Kf4 {[%emt 0:00:10]} 44. Rf6+ {[%emt 0:00:16]} Ke5 {[%emt 0:00:04]} 45. Rg6 {[%emt 0:00:20]} Kf5 {[%emt 0:00:05]} 46. Ra6 {[%emt 0:00:02]} g4 {[%emt 0:00:07]} 47. Ra8 {[%emt 0:00:04]} Kf4 {[%emt 0:00:02]} 48. Rf8+ {[%emt 0:00:03]} Ke5 {[%emt 0:00:02]} 49. Ra8 {[%emt 0:00:02]} Kd4 {[%emt 0:00:04]} 50. Rd8+ {[%emt 0:00:18]} Ke5 {[%emt 0:00:09]} 51. Ra8 {[%emt 0:00:07]} Ra2+ {[%emt 0:00:07]} 52. Ke3 {[%emt 0:00:03]} Ra3+ {[%emt 0:00:01]} 53. Ke2 {[%emt 0:00:02]} Kd4 {[%emt 0:00:03]} 54. a6 {[%emt 0:00:13]} Ra2+ {[%emt 0:00:02]} 55. Kf1 {[%emt 0:00:03]} Ra1+ {[%emt 0:00:25]} 56. Kg2 {[%emt 0:00:07]} Kc5 {[%emt 0:00:25]} 57. a7 {[%emt 0:00:14]} Kb6 {[%emt 0:00:08]} 58. Re8 {[%emt 0:00:06]} Rxa7 {[%emt 0:00:10]} 59. Rxe4 {[%emt 0:00:03]} Rg7 {[%emt 0:00:18]} 60. Kg3 {[%emt 0:00:02]} Kc6 {[%emt 0:00:01]} 61. Rxg4 {[%emt 0:00:07]} Rf7 {[%emt 0:00:09]} 62. Rd4 {[%emt 0:00:18]} Rg7+ {[%emt 0:00:07]} 63. Kh4 {[%emt 0:00:09]} Kc5 {[%emt 0:00:04]} 64. Rd8 {[%emt 0:00:09]} Rf7 {[%emt 0:00:08]} 65. Kg3 {[%emt 0:00:03]} Rg7+ {[%emt 0:00:01]} 66. Kf3 {[%emt 0:00:02]} Rf7+ {[%emt 0:00:02]} 67. Ke3 {[%emt 0:00:06]} Re7+ {[%emt 0:00:01]} 68. Kd3 {[%emt 0:00:07]} Rf7 {[%emt 0:00:04]} 69. Ke2 {[%emt 0:00:02]} Re7+ {[%emt 0:00:02]} 70. Kf1 {[%emt 0:00:02]} Rf7 {[%emt 0:00:03]} 71. Rd2 {[%emt 0:00:06]} Kc4 {[%emt 0:00:04]} 72. Rd1 {[%emt 0:00:16]} Rf8 {[%emt 0:00:03]} 73. Kg2 {[%emt 0:00:07]} Rg8+ {[%emt 0:00:02]} 74. Kh3 {[%emt 0:00:01]} Rf8 {[%emt 0:00:05]} 75. Rd2 {[%emt 0:00:06]} Kc3 {[%emt 0:00:02]} 76. Ra2 {[%emt 0:00:04]} Rg8 {[%emt 0:00:04]} 77. f4 {[%emt 0:00:08]} Kd4 {[%emt 0:00:03]} 78. Re2 {[%emt 0:00:03]} Rh8+ {[%emt 0:00:03]} 79. Kg4 {[%emt 0:00:02]} Rg8+ {[%emt 0:00:01]} 80. Kf5 {[%emt 0:00:03]} Rf8+ {[%emt 0:00:01]} 81. Kg5 {[%emt 0:00:01]} Rg8+ {[%emt 0:00:02]} 82. Kh5 {[%emt 0:00:06]} Rf8 {[%emt 0:00:05]} 83. Kg5 {[%emt 0:00:05]} Rg8+ {[%emt 0:00:02]} 84. Kh4 {[%emt 0:00:02]} Rf8 {[%emt 0:00:02]} 85. Kg3 {[%emt 0:00:01]} Rg8+ {[%emt 0:00:01]} 86. Kf3 {[%emt 0:00:02]} Rf8 {[%emt 0:00:03]} 87. Re5 {[%emt 0:00:07]} Rf7 {[%emt 0:00:16]} 88. Ra5 {[%emt 0:00:03]} Rf8 {[%emt 0:00:07]} 89. f5 {[%emt 0:00:05]} Rh8 {[%emt 0:00:54]} 90. Kf4 {[%emt 0:00:05]} Rf8 {[%emt 0:00:03]} 91. Ra6 {[%emt 0:00:10]} Kd5 {[%emt 0:00:03]} 92. f6 {[%emt 0:00:04]} Rh8 {[%emt 0:00:13]} 93. Kf5 {[%emt 0:00:04]} Rh1 {[%emt 0:00:18]} 94. f7 {[%emt 0:00:16]} Rf1+ {[%emt 0:00:21]} 95. Kg6 {[%emt 0:00:03]} Rg1+ {[%emt 0:00:03]} 96. Kh6 {[%emt 0:00:08]} Rf1 {[%emt 0:00:07]} 97. Kg7 {[%emt 0:00:01]} Rg1+ {[%emt 0:00:02]} 98. Rg6 {[%emt 0:00:03]} 1-0

[Event "Gaprindashvili Cup Open II Stage 2020"]
[Site "Online"]
[Date "2020.11.08"]
[Round "8.16"]
[White "Kupatadze, Tornike"]
[Black "Tsereteli, Tornike"]
[Result "0-1"]
[ECO "B02"]
[WhiteElo "1657"]
[BlackElo "1765"]
[Annotator "NA RC"]
[PlyCount "82"]
[EventDate "2020.11.04"]
[EventType "swiss"]
[SourceTitle "playchess.com"]
[Source "ChessBase"]
[SourceQuality "1"]
[TimeControl "1500+5"]

1. e4 {[%emt 0:00:03]} Nf6 {[%emt 0:00:05]} 2. Nc3 {[%emt 0:00:05]} d5 {[%emt 0:00:08]} 3. exd5 {[%emt 0:00:05]} Nxd5 {[%emt 0:00:01]} 4. Bc4 {[%emt 0:00:05]} c6 {[%emt 0:00:02]} 5. Nf3 {[%emt 0:00:30]} Bf5 {[%emt 0:00:07]} 6. Nxd5 {[%emt 0:00:36]} cxd5 {[%emt 0:00:10]} 7. Bb5+ {[%emt 0:00:03]} Bd7 {[%emt 0:00:03]} 8. Bxd7+ {[%emt 0:00:06]} Nxd7 {[%emt 0:00:04]} 9. b3 {[%emt 0:00:04]} e6 {[%emt 0:00:17]} 10. Bb2 {[%emt 0:00:04]} Nf6 {[%emt 0:00:03]} 11. O-O {[%emt 0:00:02]} Be7 {[%emt 0:00:06]} 12. Re1 {[%emt 0:00:04]} O-O {[%emt 0:00:02]} 13. d3 {[%emt 0:00:04]} Rc8 {[%emt 0:00:07]} 14. c4 {[%emt 0:00:36]} Qa5 {[%emt 0:00:21]} 15. a3 {[%emt 0:01:37]} Rfd8 {[%emt 0:01:06]} 16. b4 {[%emt 0:00:12]} Qa6 {[%emt 0:00:07]} 17. c5 {[%emt 0:00:04]} b6 {[%emt 0:00:04]} 18. d4 {[%emt 0:00:06]} Ne4 {[%emt 0:00:18]} 19. a4 {[%emt 0:00:23]} Qc4 {[%emt 0:00:43]} 20. Ba3 {[%emt 0:01:12]} Bf6 {[%emt 0:00:56]} 21. Re3 {[%emt 0:02:19]} bxc5 {[%emt 0:01:19]} 22. Rc1 {[%emt 0:00:20]} Qa2 {[%emt 0:00:47]} 23. Rc2 {[%emt 0:00:11]} Qxc2 {[%emt 0:00:02]} 24. Qxc2 {[%emt 0:00:09]} cxd4 {[%emt 0:00:02]} 25. Qd1 {[%emt 0:01:00]} dxe3 {[%emt 0:00:02]} 26. fxe3 {[%emt 0:00:01]} Rc4 {[%emt 0:01:19]} 27. Nd2 {[%emt 0:01:38]} Nxd2 {[%emt 0:00:04]} 28. Qxd2 {[%emt 0:00:02]} Rdc8 {[%emt 0:00:02]} 29. Qe2 {[%emt 0:01:10]} d4 {[%emt 0:01:23]} 30. e4 {[%emt 0:00:36]} Rc2 {[%emt 0:02:25]} 31. Qb5 {[%emt 0:01:00]} g6 {[%emt 0:00:53]} 32. e5 {[%emt 0:00:23]} Bg5 {[%emt 0:00:07]} 33. h4 {[%emt 0:00:57]} Bxh4 {[%emt 0:01:13]} 34. Qd7 {[%emt 0:00:05]} Bg3 {[%emt 0:00:25]} 35. Kf1 {[%emt 0:00:05]} Bxe5 {[%emt 0:01:47]} 36. Bb2 {[%emt 0:00:13]} R8c4 {[%emt 0:00:44]} 37. Qb5 {[%emt 0:00:34]} Bf6 {[%emt 0:00:52]} 38. Ke1 {[%emt 0:00:44]} Rc8 {[%emt 0:00:53]} 39. Ba3 {[%emt 0:00:12]} R8c3 {[%emt 0:00:57]} 40. Kd1 {[%emt 0:00:28]} Rxg2 {[%emt 0:00:08]} 41. Qf1 {[%emt 0:00:39]} Rxa3 {[%emt 0:00:06]} 0-1

[Event "Gaprindashvili Cup Open II Stage 2020"]
[Site "Online"]
[Date "2020.11.08"]
[Round "8.17"]
[White "Liponava, Zurab"]
[Black "Gogolashvili, Giorgi"]
[Result "0-1"]
[ECO "C02"]
[WhiteElo "1800"]
[BlackElo "1448"]
[Annotator "NA RC"]
[PlyCount "68"]
[EventDate "2020.11.04"]
[EventType "swiss"]
[SourceTitle "playchess.com"]
[Source "ChessBase"]
[SourceQuality "1"]
[TimeControl "1500+5"]

1. e4 {[%emt 0:00:03]} e6 {[%emt 0:00:04]} 2. d4 {[%emt 0:00:03]} d5 {[%emt 0:00:03]} 3. e5 {[%emt 0:00:01]} c5 {[%emt 0:00:01]} 4. c3 {[%emt 0:00:02]} Nc6 {[%emt 0:00:03]} 5. Nf3 {[%emt 0:00:01]} Bd7 {[%emt 0:00:01]} 6. dxc5 {[%emt 0:00:03]} Bxc5 {[%emt 0:00:05]} 7. Bd3 {[%emt 0:00:02]} Nge7 {[%emt 0:00:08]} 8. O-O {[%emt 0:00:06]} Ng6 {[%emt 0:00:01]} 9. Qe2 {[%emt 0:00:10]} Qc7 {[%emt 0:00:19]} 10. Re1 {[%emt 0:00:03]} O-O {[%emt 0:00:17]} 11. b4 {[%emt 0:00:16]} Bb6 {[%emt 0:00:20]} 12. g3 {[%emt 0:00:28]} Rae8 {[%emt 0:00:54]} 13. a4 {[%emt 0:00:12]} a6 {[%emt 0:01:29]} 14. b5 {[%emt 0:00:43]} axb5 {[%emt 0:00:12]} 15. axb5 {[%emt 0:00:02]} Nce7 {[%emt 0:00:13]} 16. h4 {[%emt 0:00:42]} f6 {[%emt 0:03:04]} 17. Bxg6 {[%emt 0:07:08]} Nxg6 {[%emt 0:01:12]} 18. Kg2 {[%emt 0:02:17]} fxe5 {[%emt 0:00:16]} 19. h5 {[%emt 0:00:24]} e4 {[%emt 0:00:06]} 20. Nd4 {[%emt 0:00:19]} Ne5 {[%emt 0:00:49]} 21. Bf4 {[%emt 0:00:13]} Rxf4 {[%emt 0:00:04]} 22. gxf4 {[%emt 0:00:03]} Nd3 {[%emt 0:00:03]} 23. Qd2 {[%emt 0:02:09]} Nxf4+ {[%emt 0:00:10]} 24. Kh1 {[%emt 0:00:41]} e5 {[%emt 0:00:27]} 25. Ne2 {[%emt 0:00:14]} Nd3 {[%emt 0:00:25]} 26. Ng3 {[%emt 0:00:42]} Bxf2 {[%emt 0:00:45]} 27. Rg1 {[%emt 0:00:07]} Bxg1 {[%emt 0:00:12]} 28. Kxg1 {[%emt 0:00:02]} Qb6+ {[%emt 0:00:09]} 29. Kg2 {[%emt 0:00:07]} Rf8 {[%emt 0:00:15]} 30. Nh1 {[%emt 0:00:24]} Qf6 {[%emt 0:00:15]} 31. Na3 {[%emt 0:00:12]} Qf3+ {[%emt 0:00:07]} 32. Kg1 {[%emt 0:00:13]} Nf4 {[%emt 0:00:31]} 33. Ra2 {[%emt 0:00:37]} e3 {[%emt 0:00:42]} 34. Qe1 {[%emt 0:00:17]} e2 {[%emt 0:00:24]} 0-1

[Event "Gaprindashvili Cup Open II Stage 2020"]
[Site "Online"]
[Date "2020.11.08"]
[Round "9.12"]
[White "Tsereteli, Tornike"]
[Black "Mindiashvili, Tengiz"]
[Result "0-1"]
[ECO "C54"]
[WhiteElo "1765"]
[BlackElo "1923"]
[Annotator "ChessBase"]
[PlyCount "92"]
[EventDate "2020.11.04"]
[EventType "swiss"]
[SourceTitle "playchess.com"]
[Source "ChessBase"]
[SourceQuality "1"]
[TimeControl "1500+5"]

1. e4 {[%emt 0:00:03]} e5 {[%emt 0:00:18]} 2. Nf3 {[%emt 0:00:07]} Nc6 {[%emt 0:00:02]} 3. Bc4 {[%emt 0:00:01]} Bc5 {[%emt 0:00:07]} 4. c3 {[%emt 0:00:06]} Nf6 {[%emt 0:00:03]} 5. d3 {[%emt 0:00:05]} d6 {[%emt 0:00:03]} 6. h3 {[%emt 0:00:04]} Bb6 {[%emt 0:00:11]} 7. O-O {[%emt 0:00:02]} Ne7 {[%emt 0:00:02]} 8. Re1 {[%emt 0:00:15]} Ng6 {[%emt 0:00:02]} 9. d4 {[%emt 0:00:05]} O-O {[%emt 0:00:07]} 10. a4 {[%emt 0:00:19]} a6 {[%emt 0:00:07]} 11. a5 {[%emt 0:00:03]} Ba7 {[%emt 0:00:02]} 12. Nbd2 {[%emt 0:00:18]} c6 {[%emt 0:00:07]} 13. Bb3 {[%emt 0:00:10]} h6 {[%emt 0:00:07]} 14. Nf1 {[%emt 0:00:03]} Re8 {[%emt 0:00:04]} 15. dxe5 {[%emt 0:00:06]} dxe5 {[%emt 0:00:10]} 16. Be3 {[%emt 0:00:02]} Bxe3 {[%emt 0:00:43]} 17. Rxe3 {[%emt 0:00:07]} Be6 {[%emt 0:00:54]} 18. Ng3 {[%emt 0:00:06]} Qxd1+ {[%emt 0:00:13]} 19. Bxd1 {[%emt 0:00:07]} Rad8 {[%emt 0:00:05]} 20. Bc2 {[%emt 0:00:04]} Nd7 {[%emt 0:01:32]} 21. Rd1 {[%emt 0:00:20]} Nb8 {[%emt 0:00:32]} 22. b4 {[%emt 0:00:56]} Rxd1+ {[%emt 0:03:12]} 23. Bxd1 {[%emt 0:00:03]} Rd8 {[%emt 0:00:01]} 24. Bc2 {[%emt 0:00:11]} f6 {[%emt 0:00:03]} 25. Rd3 {[%emt 0:00:40]} Rc8 {[%emt 0:00:41]} 26. Rd6 {[%emt 0:00:15]} Nf4 {[%emt 0:00:49]} 27. Nh4 {[%emt 0:03:07]} Kh7 {[%emt 0:01:22]} 28. Kf1 {[%emt 0:02:12]} c5 {[%emt 0:00:23]} 29. Ne2 {[%emt 0:00:04]} Bc4 {[%emt 0:00:10]} 30. Bd1 {[%emt 0:00:03]} cxb4 {[%emt 0:00:06]} 31. cxb4 {[%emt 0:00:03]} Nc6 {[%emt 0:01:29]} 32. Nf5 {[%emt 0:00:19]} Bxe2+ {[%emt 0:00:27]} 33. Bxe2 {[%emt 0:00:05]} Nd4 {[%emt 0:00:02]} 34. Bd1 {[%emt 0:00:39]} Rc1 {[%emt 0:00:58]} 35. Ke1 {[%emt 0:00:07]} Nxf5 {[%emt 0:01:43]} 36. exf5 {[%emt 0:00:10]} Rb1 {[%emt 0:00:05]} 37. g3 {[%emt 0:01:40]} Nxh3 {[%emt 0:00:11]} 38. Kd2 {[%emt 0:00:10]} Nxf2 {[%emt 0:00:20]} 39. Bf3 {[%emt 0:00:31]} Rxb4 {[%emt 0:01:01]} 40. Ke3 {[%emt 0:00:15]} Ng4+ {[%emt 0:01:35]} 41. Ke2 {[%emt 0:00:29]} h5 {[%emt 0:00:26]} 42. Rb6 {[%emt 0:00:07]} Ra4 {[%emt 0:00:06]} 43. Bxb7 {[%emt 0:00:37]} Ra2+ {[%emt 0:00:10]} 44. Kd3 {[%emt 0:00:10]} Rxa5 {[%emt 0:00:03]} 45. Ke4 {[%emt 0:00:21]} Rb5 {[%emt 0:00:16]} 46. Rxb5 {[%emt 0:00:09]} axb5 {[%emt 0:00:02]} 0-1

[Event "Gaprindashvili Cup Open II Stage 2020"]
[Site "Online"]
[Date "2020.11.08"]
[Round "9.14"]
[White "Elashvili, Giorgi"]
[Black "Kachkachishvili, Lasha"]
[Result "1/2-1/2"]
[ECO "E05"]
[WhiteElo "1857"]
[BlackElo "1681"]
[Annotator "NA"]
[PlyCount "32"]
[EventDate "2020.11.04"]
[EventType "swiss"]
[SourceTitle "playchess.com"]
[Source "ChessBase"]
[SourceQuality "1"]
[TimeControl "1500+5"]

1. Nf3 {[%emt 0:00:13]} Nf6 {[%emt 0:00:11]} 2. g3 {[%emt 0:00:02]} e6 {[%emt 0:00:05]} 3. Bg2 {[%emt 0:00:02]} d5 {[%emt 0:00:01]} 4. O-O {[%emt 0:00:02]} Be7 {[%emt 0:00:02]} 5. c4 {[%emt 0:00:11]} O-O {[%emt 0:00:02]} 6. d4 {[%emt 0:00:05]} dxc4 {[%emt 0:00:02]} 7. Qc2 {[%emt 0:00:09]} a6 {[%emt 0:00:02]} 8. Qxc4 {[%emt 0:00:12]} b5 {[%emt 0:00:02]} 9. Qc2 {[%emt 0:00:02]} Bb7 {[%emt 0:00:01]} 10. Bf4 {[%emt 0:00:08]} Nc6 {[%emt 0:00:05]} 11. Nbd2 {[%emt 0:00:50]} Rc8 {[%emt 0:01:03]} 12. a3 {[%emt 0:01:14]} Nxd4 {[%emt 0:01:27]} 13. Nxd4 {[%emt 0:00:04]} Bxg2 {[%emt 0:00:04]} 14. Nxe6 {[%emt 0:00:52]} Qd5 {[%emt 0:01:18]} 15. Nxf8 {[%emt 0:00:34]} Bxf1 {[%emt 0:00:11]} 16. Nxf1 {[%emt 0:00:12]} Bxf8 {[%emt 0:00:12]} 1/2-1/2